fUSD/lending_fUSD_20260116
["ID","MTS","AMOUNT","RATE_DAILY","PERIOD"]
[402159480,1768553740216,-575.94,0.00040273,10]
[402159481,1768553740224,-716.91,0.00040273,10]
[402159482,1768553740233,-876.77,0.00040273,10]
[402159483,1768553740242,-500.0,0.00040273,10]
[402159484,1768553740251,-990.78,0.00040273,10]
[402159485,1768553740260,-1150.93,0.00040273,10]
[402159486,1768553740269,-909.88,0.00040273,10]
[402159487,1768553740279,-541.15,0.00040273,10]
[402159488,1768553740289,-500.0,0.00040273,10]
[402159489,1768553740299,-527.48,0.00040273,10]
[402159490,1768553740310,-500.0,0.00040273,10]
[402159491,1768553740321,-744.14,0.00040273,10]
[402159492,1768553740330,-903.48,0.00040273,10]
[402159493,1768553740340,-507.96,0.00040273,10]
[402159494,1768553740350,-662.66,0.00040273,10]
[402159495,1768553740360,-690.13,0.00040273,10]
[402159496,1768553740369,-519.9,0.00040273,10]
[402159497,1768553740378,-1521.24,0.00040273,10]
[402159498,1768553740387,-823.6,0.00040273,10]
[402159499,1768553740396,-500.0,0.00040273,10]
[402159500,1768553740405,-500.0,0.00040273,10]
[402159501,1768553740414,-1331.43,0.00040273,10]
[402159502,1768553740423,-732.95,0.00040273,10]
[402159503,1768553740432,-1326.59,0.00040273,10]
[402159504,1768553740441,-1280.38,0.00040273,10]
[402159505,1768553740450,-791.99,0.00040273,10]
[402159506,1768553740459,-500.0,0.00040273,10]
[402159507,1768553740468,-512.72,0.00040273,10]
[402159508,1768553740477,-979.74,0.00040273,10]
[402159509,1768553740486,-500.0,0.00040273,10]
[402159510,1768553740496,-644.37,0.00040273,10]
[402159511,1768553740505,-577.2,0.00040273,10]
[402159512,1768553740514,-970.71,0.00040273,10]
[402159513,1768553740523,-570.0,0.00040273,10]
[402159514,1768553740532,-500.0,0.00040273,10]
[402159515,1768553740542,-500.0,0.00040273,10]
[402159516,1768553740550,-751.52,0.00040273,10]
[402159517,1768553740559,-1015.29,0.00040273,10]
[402159518,1768553740569,-685.85,0.00040273,10]
[402159519,1768553740581,-518.25,0.00040273,10]
[402159520,1768553740590,-612.29,0.00040273,10]
[402159521,1768553740599,-500.0,0.00040273,10]
[402159522,1768553740607,-806.51,0.00040273,10]
[402159523,1768553740618,-695.39,0.00040273,10]
[402159524,1768553740627,-607.83,0.00040273,10]
[402159525,1768553740636,-549.65,0.00040273,10]
[402159526,1768553740646,-500.0,0.00040273,10]
[402159527,1768553740655,-1220.06,0.00040273,10]
[402159528,1768553740665,-1662.06,0.00040273,10]
[402159529,1768553740674,-1639.22,0.00040273,10]
[402159530,1768553740683,-315.7609292,0.00040273,10]
[402159531,1768553740692,-500.0,0.00040273,10]
[402159532,1768553740702,-908.6,0.00040273,10]
[402159533,1768553740711,-1617.91,0.00040273,10]
[402159534,1768553740720,-1143.12,0.00040273,10]
[402159535,1768553740729,-500.0,0.00040273,10]
[402159536,1768553740739,-816.75,0.00040273,10]
[402159537,1768553740748,-500.0,0.00040273,10]
[402159538,1768553740757,-500.0,0.00040273,10]
[402159539,1768553740766,-716.45,0.00040273,10]
[402159540,1768553740776,-500.0,0.00040273,10]
[402159541,1768553740785,-885.26,0.00040273,10]
[402159542,1768553740794,-500.0,0.00040273,10]
[402159543,1768553740803,-678.11,0.00040273,10]
[402159544,1768553740813,-1027.78,0.00040273,10]
[402159545,1768553740822,-1096.77,0.00040273,10]
[402159546,1768553740832,-702.08,0.00040273,10]
[402159547,1768553740840,-681.79,0.00040273,10]
[402159548,1768553740850,-1477.47,0.00040273,10]
[402159549,1768553740859,-500.0,0.00040273,10]
[402159550,1768553740869,-989.99,0.00040273,10]
[402159551,1768553740878,-676.3,0.00040273,10]
[402159552,1768553740887,-500.0,0.00040273,10]
[402159553,1768553740897,-500.0,0.00040273,10]
[402159554,1768553740906,-912.84,0.00040273,10]
[402159555,1768553740915,-807.54,0.00040273,10]
[402159556,1768553740926,-636.6376098,0.00040273,10]
[402159557,1768553740935,-591.47,0.00040273,10]
[402159558,1768553740945,-1293.68,0.00040273,10]
[402159559,1768553740955,-500.0,0.00040273,10]
[402159560,1768553740964,-500.0,0.00040273,10]
[402159561,1768553740974,-618.86,0.00040273,10]
[402159562,1768553740983,-834.67,0.00040273,10]
[402159563,1768553740992,-500.0,0.00040273,10]
[402159564,1768553741001,-632.07742554,0.00040273,10]
[402159565,1768553741011,-4949.68,0.00040273,10]
[402159566,1768553741020,-1730.65,0.00040273,10]
[402159567,1768553741029,-500.46,0.00040273,10]
[402159568,1768553741039,-930.98,0.00040273,10]
[402159569,1768553741049,-875.62,0.00040273,10]
[402159570,1768553741057,-500.0,0.00040273,10]
[402159571,1768553741067,-500.0,0.00040273,10]
[402159572,1768553741076,-1041.0,0.00040273,10]
[402159573,1768553741085,-500.0,0.00040273,10]
[402159574,1768553741094,-1262.31,0.00040273,10]
[402159575,1768553741104,-524.92,0.00040273,10]
[402159576,1768553741113,-591.83,0.00040273,10]
[402159577,1768553741123,-614.68,0.00040273,10]
[402159578,1768553741132,-500.0,0.00040273,10]
[402159579,1768553741141,-790.99,0.00040273,10]
[402159580,1768553741151,-1848.72,0.00040273,10]
[402159581,1768553741160,-500.0,0.00040273,10]
[402159582,1768553741169,-353.65,0.00040273,2]
[402159583,1768553741178,-1044.21,0.00040273,10]
[402159584,1768553741187,-500.0,0.00040273,10]
[402159585,1768553741197,-1947.44,0.00040273,10]
[402159586,1768553741206,-500.0,0.00040273,10]
[402159587,1768553741215,-629.32,0.00040273,10]
[402159588,1768553741225,-1553.42,0.00040273,10]
[402159589,1768553741234,-1024.82,0.00040273,10]
[402159590,1768553741243,-795.66,0.00040273,10]
[402159591,1768553741252,-1036.49,0.00040273,10]
[402159592,1768553741261,-1013.98,0.00040273,10]
[402159593,1768553741270,-875.71,0.00040273,10]
[402159594,1768553741279,-548.64,0.00040273,10]
[402159595,1768553741288,-562.25,0.00040273,10]
[402159596,1768553741297,-1422.5,0.00040273,10]
[402159597,1768553741306,-543.96,0.00040273,10]
[402159598,1768553741316,-1126.68,0.00040273,10]
[402159599,1768553741325,-2121.76,0.00040273,10]
[402159600,1768553741335,-532.76,0.00040273,10]
[402159601,1768553741345,-1905.23,0.00040273,10]
[402159602,1768553741354,-502.52,0.00040273,10]
[402159603,1768553741363,-540.07,0.00040273,10]
[402159604,1768553741372,-1016.35,0.00040273,10]
[402159605,1768553741382,-5056.94,0.00040273,10]
[402159606,1768553741391,-592.16,0.00040273,10]
[402159607,1768553741401,-889.56,0.00040273,10]
[402159608,1768553741410,-500.0,0.00040273,10]
[402159609,1768553741420,-1150.45,0.00040273,10]
[402159610,1768553741430,-1345.33,0.00040273,10]
[402159611,1768553741439,-648.45,0.00040273,10]
[402159612,1768553741448,-1052.14,0.00040273,10]
[402159613,1768553741457,-990.43,0.00040273,10]
[402159614,1768553741466,-547.20137009,0.00040273,10]
[402159615,1768553741475,-877.08,0.00040273,10]
[402159616,1768553741484,-1245.81,0.00040273,10]
[402159617,1768553741493,-665.86,0.00040273,10]
[402159618,1768553741503,-1029.8,0.00040273,10]
[402159619,1768553741511,-1298.7,0.00040273,10]
[402159620,1768553741520,-581.72,0.00040273,10]
[402159621,1768553741530,-850.69,0.00040273,10]
[402159622,1768553741539,-995.5,0.00040273,10]
[402159623,1768553741547,-1075.5,0.00040273,10]
[402159624,1768553741556,-519.23,0.00040273,10]
[402159625,1768553741565,-529.03,0.00040273,10]
[402159626,1768553741578,-716.08,0.00040273,10]
[402159627,1768553741587,-500.0,0.00040273,10]
[402159628,1768553741596,-1363.31,0.00040273,10]
[402159629,1768553741605,-598.71,0.00040273,10]
[402159630,1768553741614,-1221.02,0.00040273,10]
[402159631,1768553741624,-823.04,0.00040273,10]
[402159632,1768553741633,-1064.34,0.00040273,10]
[402159633,1768553741643,-500.0,0.00040273,10]
[402159634,1768553741651,-2853.19,0.00040273,10]
[402159635,1768553741660,-913.43,0.00040273,10]
[402159636,1768553741669,-591.9,0.00040273,10]
[402159637,1768553741679,-500.0,0.00040273,10]
[402159638,1768553741688,-549.28,0.00040273,10]
[402159639,1768553741698,-2393.97,0.00040273,10]
[402159640,1768553741706,-589.47,0.00040273,10]
[402159641,1768553741715,-2257.21,0.00040273,10]
[402159642,1768553741725,-805.83,0.00040273,10]
[402159643,1768553741735,-546.1,0.00040273,10]
[402159644,1768553741744,-500.0,0.00040273,10]
[402159645,1768553741753,-1412.18,0.00040273,10]
[402159646,1768553741762,-500.0,0.00040273,10]
[402159647,1768553741770,-500.0,0.00040273,10]
[402159648,1768553741779,-500.0,0.00040273,10]
[402159649,1768553741788,-712.99,0.00040273,10]
[402159650,1768553741796,-661.07,0.00040273,10]
[402159651,1768553741805,-732.11,0.00040273,10]
[402159652,1768553741814,-693.86,0.00040273,10]
[402159653,1768553741822,-713.12,0.00040273,10]
[402159654,1768553741831,-1182.17,0.00040273,10]
[402159655,1768553741840,-652.47,0.00040273,10]
[402159656,1768553741849,-714.22,0.00040273,10]
[402159657,1768553741857,-652.5,0.00040273,10]
[402159658,1768553741866,-1245.62,0.00040273,10]
[402159659,1768553741875,-500.0,0.00040273,10]
[402159660,1768553741884,-1497.09,0.00040273,10]
[402159661,1768553741892,-158.38237116,0.00040273,10]
[402159662,1768553741901,-1210.4,0.00040273,10]
[402159663,1768553741910,-1212.59,0.00040273,10]
[402159664,1768553741919,-941.66,0.00040273,10]
[402159665,1768553741928,-1223.9,0.00040273,10]
[402159666,1768553741937,-500.0,0.00040273,10]
[402159667,1768553741946,-1292.5,0.00040273,10]
[402159668,1768553741956,-1141.45,0.00040273,10]
[402159669,1768553741965,-885.86,0.00040273,10]
[402159670,1768553741975,-520.6,0.00040273,10]
[402159671,1768553741985,-3901.38,0.00040273,10]
[402159672,1768553741994,-532.57,0.00040273,10]
[402159673,1768553742003,-1219.5,0.00040273,10]
[402159674,1768553742012,-2909.8,0.00040273,10]
[402159675,1768553742022,-858.87,0.00040273,10]
[402159676,1768553742031,-500.0,0.00040273,10]
[402159677,1768553742040,-544.68,0.00040273,10]
[402159678,1768553742049,-993.01,0.00040273,10]
[402159679,1768553742058,-1760.07,0.00040273,10]
[402159680,1768553742067,-553.74,0.00040273,10]
[402159681,1768553742076,-1228.85,0.00040273,10]
[402159682,1768553742085,-500.0,0.00040273,10]
[402159683,1768553742094,-1541.19,0.00040273,10]
[402159684,1768553742104,-599.03,0.00040273,10]
[402159685,1768553742113,-1004.55,0.00040273,10]
[402159686,1768553742123,-1256.3,0.00040273,10]
[402159687,1768553742131,-722.08,0.00040273,10]
[402159688,1768553742141,-1627.41,0.00040273,10]
[402159689,1768553742150,-999.49,0.00040273,10]
[402159690,1768553742159,-1143.9,0.00040273,10]
[402159691,1768553742168,-1224.65,0.00040273,10]
[402159692,1768553742178,-560.6,0.00040273,10]
[402159693,1768553742187,-1155.7,0.00040273,10]
[402159694,1768553742196,-500.0,0.00040273,10]
[402159695,1768553742205,-614.31,0.00040273,10]
[402159696,1768553742214,-637.11,0.00040273,10]
[402159697,1768553742224,-2192.51,0.00040273,10]
[402159698,1768553742234,-2225.78,0.00040273,10]
[402159699,1768553742243,-758.24,0.00040273,10]
[402159700,1768553742251,-2013.58,0.00040273,10]
[402159701,1768553742260,-2864.87,0.00040273,10]
[402159702,1768553742269,-808.72,0.00040273,10]
[402159703,1768553742278,-1567.87,0.00040273,10]
[402159704,1768553742287,-518.17,0.00040273,10]
[402159705,1768553742296,-1811.28,0.00040273,10]
[402159706,1768553742306,-558.81,0.00040273,10]
[402159707,1768553742314,-1071.23,0.00040273,10]
[402159708,1768553742324,-1032.65,0.00040273,10]
[402159709,1768553742333,-659.01,0.00040273,10]
[402159710,1768553742343,-866.89,0.00040273,10]
[402159711,1768553742352,-759.31,0.00040273,10]
[402159712,1768553742362,-637.41,0.00040273,10]
[402159713,1768553742370,-1020.76,0.00040273,10]
[402159714,1768553742379,-1128.16,0.00040273,10]
[402159715,1768553742388,-7210.62,0.00040273,10]
[402159716,1768553742397,-547.39,0.00040273,10]
[402159717,1768553742405,-5211.07,0.00040273,10]
[402159718,1768553742414,-1681.96,0.00040273,10]
[402159719,1768553742423,-729.24,0.00040273,10]
[402159720,1768553742433,-1064.3,0.00040273,10]
[402159721,1768553742442,-5144.07,0.00040273,10]
[402159722,1768553742451,-521.48,0.00040273,10]
[402159723,1768553742460,-532.27,0.00040273,10]
[402159724,1768553742468,-1000.95,0.00040273,10]
[402159725,1768553742477,-2351.16,0.00040273,10]
[402159726,1768553742486,-672.3,0.00040273,10]
[402159727,1768553742495,-1000.0,0.00040273,10]
[402159728,1768553742504,-679.92,0.00040273,10]
[402159729,1768553742513,-642.7,0.00040273,10]
[402159730,1768553742523,-1048.19,0.00040273,10]
[402159731,1768553742532,-2044.82,0.00040273,10]
[402159732,1768553742542,-500.0,0.00040273,10]
[402159733,1768553742550,-735.56,0.00040273,10]
[402159734,1768553742559,-804.46,0.00040273,10]
[402159735,1768553742568,-500.0,0.00040273,10]
[402159736,1768553742580,-793.57,0.00040273,10]
[402159737,1768553742589,-1159.07,0.00040273,10]
[402159738,1768553742598,-2221.23,0.00040273,10]
[402159739,1768553742607,-580.85,0.00040273,10]
[402159740,1768553742618,-941.49,0.00040273,10]
[402159741,1768553742627,-599.94,0.00040273,10]
[402159742,1768553742637,-677.99,0.00040273,10]
[402159743,1768553742650,-500.0,0.00040273,10]
[402159744,1768553742661,-1202.41,0.00040273,10]
[402159745,1768553742672,-2033.16,0.00040273,10]
[402159746,1768553742681,-2114.42,0.00040273,10]
[402159747,1768553742690,-1524.13,0.00040273,10]
[402159748,1768553742699,-953.55,0.00040273,10]
[402159749,1768553742708,-556.39,0.00040273,10]
[402159750,1768553742718,-1013.89,0.00040273,10]
[402159751,1768553742727,-1302.19,0.00040273,10]
[402159752,1768553742737,-593.7,0.00040273,10]
[402159753,1768553742746,-859.25,0.00040273,10]
[402159754,1768553742755,-623.79,0.00040273,10]
[402159755,1768553742764,-1282.3,0.00040273,10]
[402159756,1768553742773,-500.0,0.00040273,10]
[402159757,1768553742782,-606.36,0.00040273,10]
[402159758,1768553742791,-1084.77,0.00040273,10]
[402159759,1768553742800,-781.44,0.00040273,10]
[402159760,1768553742810,-616.11,0.00040273,10]
[402159761,1768553742819,-907.52,0.00040273,10]
[402159762,1768553742828,-731.99,0.00040273,10]
[402159763,1768553742838,-849.36,0.00040273,10]
[402159764,1768553742847,-1477.23,0.00040273,10]
[402159765,1768553742855,-643.32,0.00040273,10]
[402159766,1768553742864,-500.0,0.00040273,10]
[402159767,1768553742873,-823.29,0.00040273,10]
[402159768,1768553742882,-802.79,0.00040273,10]
[402159769,1768553742891,-1029.59,0.00040273,10]
[402159770,1768553742899,-725.02,0.00040273,10]
[402159771,1768553742908,-2502.55,0.00040273,10]
[402159772,1768553742918,-713.0,0.00040273,10]
[402159773,1768553742928,-1172.78,0.00040273,10]
[402159774,1768553742937,-1013.39,0.00040273,10]
[402159775,1768553742946,-764.71,0.00040273,10]
[402159776,1768553742955,-761.36,0.00040273,10]
[402159777,1768553742964,-4884.35,0.00040273,10]
[402159778,1768553742973,-629.83,0.00040273,10]
[402159779,1768553742982,-704.6,0.00040273,10]
[402159780,1768553742991,-1262.69,0.00040273,10]
[402159781,1768553743000,-1064.4,0.00040273,10]
[402159782,1768553743010,-500.0,0.00040273,10]
[402159783,1768553743019,-564.83,0.00040273,10]
[402159784,1768553743028,-1260.28,0.00040273,10]
[402159785,1768553743037,-662.32,0.00040273,10]
[402159786,1768553743047,-1785.36,0.00040273,10]
[402159787,1768553743056,-1338.09,0.00040273,10]
[402159788,1768553743065,-750.48,0.00040273,10]
[402159789,1768553743074,-897.64,0.00040273,10]
[402159790,1768553743083,-500.0,0.00040273,10]
[402159791,1768553743092,-591.5,0.00040273,10]
[402159792,1768553743101,-1018.43,0.00040273,10]
[402159793,1768553743110,-747.98,0.00040273,10]
[402159794,1768553743119,-764.04,0.00040273,10]
[402159795,1768553743129,-500.0,0.00040273,10]
[402159796,1768553743139,-500.0,0.00040273,10]
[402159797,1768553743148,-500.0,0.00040273,10]
[402159798,1768553743158,-500.0,0.00040273,10]
[402159799,1768553743167,-6302.12,0.00040273,10]
[402159800,1768553743176,-1736.72,0.00040273,10]
[402159801,1768553743185,-505.41,0.00040273,10]
[402159802,1768553743194,-500.0,0.00040273,10]
[402159803,1768553743203,-1002.58,0.00040273,10]
[402159804,1768553743212,-667.66,0.00040273,10]
[402159805,1768553743221,-1041.6,0.00040273,10]
[402159806,1768553743231,-528.13,0.00040273,10]
[402159807,1768553743241,-848.85,0.00040273,10]
[402159808,1768553743251,-1353.3,0.00040273,10]
[402159809,1768553743260,-500.0,0.00040273,10]
[402159810,1768553743269,-1109.73,0.00040273,10]
[402159811,1768553743277,-500.0,0.00040273,10]
[402159812,1768553743286,-623.92,0.00040273,10]
[402159813,1768553743295,-737.24,0.00040273,10]
[402159814,1768553743306,-1021.74,0.00040273,10]
[402159815,1768553743322,-935.75,0.00040273,10]
[402159816,1768553743337,-539.09,0.00040273,10]
[402159817,1768553743346,-907.64,0.00040273,10]
[402159818,1768553743354,-535.61,0.00040273,10]
[402159819,1768553743364,-664.49,0.00040273,10]
[402159820,1768553743372,-686.98,0.00040273,10]
[402159821,1768553743381,-1173.84,0.00040273,10]
[402159822,1768553743390,-1333.16,0.00040273,10]
[402159823,1768553743399,-600.0,0.00040274,30]
[402159824,1768553743408,-1320.74,0.0004029,40]
[402159825,1768553743417,-150.0,0.00040294,30]
[402159826,1768553743425,-926.65649758,0.00040294,30]
[402159827,1768553743434,-150.0,0.00040294,30]
[402159828,1768553743443,-5490.84962953,0.00040294,30]
[402159829,1768553743452,-150.0,0.00040294,30]
[402159830,1768553743461,-1012.96994425,0.00040294,30]
[402159831,1768553743470,-238.90934185,0.00040302,7]
[402159832,1768553743479,-200.06159783,0.00040302,7]
[402159833,1768553743487,-162.8115885,0.00040302,7]
[402159834,1768553743496,-214.36344643,0.00040302,7]
[402159835,1768553743505,-150.0,0.00040302,7]
[402159836,1768553743514,-150.0,0.00040302,7]
[402159837,1768553743522,-203.67457519,0.00040302,7]
[402159838,1768553743531,-303.49476013,0.00040302,7]
[402159839,1768553743540,-150.0,0.00040302,7]
[402159840,1768553743549,-167.99625046,0.00040302,7]
[402159841,1768553743558,-1432.55569092,0.00040303,30]
[402159842,1768553743567,-150.0,0.00040341,7]
[402159843,1768553743580,-150.0,0.00040359,120]
[402159844,1768553743589,-238.90934185,0.0004036,7]
[402159845,1768553743597,-200.06159783,0.0004036,7]
[402159846,1768553743606,-162.8115885,0.0004036,7]
[402159847,1768553743616,-214.36344643,0.0004036,7]
[402159848,1768553743625,-203.67457519,0.0004036,7]
[402159849,1768553743633,-303.49476013,0.0004036,7]
[402159850,1768553743646,-167.99625046,0.0004036,7]
[402159851,1768553743655,-150.0,0.00040394,7]
[402159852,1768553743664,-150.0,0.00040402,7]
[402159853,1768553743674,-238.90934185,0.00040417,7]
[402159854,1768553743683,-200.06159783,0.00040417,7]
[402159855,1768553743692,-162.8115885,0.00040417,7]
[402159856,1768553743700,-214.36344643,0.00040417,7]
[402159857,1768553743709,-203.67457519,0.00040417,7]
[402159858,1768553743718,-303.49476013,0.00040417,7]
[402159859,1768553743727,-167.99625046,0.00040417,7]
[402159860,1768553743736,-150.0,0.00040448,7]
[402159861,1768553743745,-150.0,0.00040457,7]
[402159862,1768553743755,-150.0,0.0004046,120]
[402159863,1768553743764,-515.0,0.00040466,120]
[402159864,1768553743775,-238.90934185,0.00040474,7]
[402159865,1768553743785,-200.06159783,0.00040474,7]
[402159866,1768553743795,-162.8115885,0.00040474,7]
[402159867,1768553743804,-214.36344643,0.00040474,7]
[402159868,1768553743812,-203.67457519,0.00040474,7]
[402159869,1768553743821,-303.49476013,0.00040474,7]
[402159870,1768553743831,-167.99625046,0.00040474,7]
[402159871,1768553743840,-150.0,0.000405,120]
[402159872,1768553743849,-150.0,0.000405,120]
[402159873,1768553743858,-150.0,0.000405,120]
[402159874,1768553743867,-150.0,0.000405,120]
[402159875,1768553743877,-150.0,0.000405,120]
[402159876,1768553743886,-150.0,0.000405,120]
[402159877,1768553743898,-150.0,0.000405,120]
[402159878,1768553743908,-150.0,0.000405,120]
[402159879,1768553743919,-150.0,0.000405,120]
[402159880,1768553743929,-288.23858964,0.000405,120]
[402159881,1768553743938,-402.0,0.00040508,30]
[402159882,1768553743948,-150.0,0.00040512,7]
[402159883,1768553743957,-238.90934185,0.00040531,7]
[402159884,1768553743966,-200.06159783,0.00040531,7]
[402159885,1768553743975,-162.8115885,0.00040531,7]
[402159886,1768553743986,-214.36344643,0.00040531,7]
[402159887,1768553743995,-203.67457519,0.00040531,7]
[402159888,1768553744005,-303.49476013,0.00040531,7]
[402159889,1768553744014,-167.99625046,0.00040531,7]
[402159890,1768553744024,-150.0,0.00040533,7]
[402159891,1768553744034,-567.28,0.00040547,10]
[402159892,1768553744043,-1031.15,0.00040547,10]
[402159893,1768553744052,-808.21,0.00040547,10]
[402159894,1768553744061,-813.73,0.00040547,10]
[402159895,1768553744070,-973.06,0.00040547,10]
[402159896,1768553744080,-504.36,0.00040547,10]
[402159897,1768553744089,-420.71902751,0.00040547,10]
[402159898,1768553744099,-674.01,0.00040547,10]
[402159899,1768553744257,-500.0,0.00040547,10]
[402159900,1768553744273,-1037.35,0.00040547,10]
[402159901,1768553744282,-525.62,0.00040547,10]
[402159902,1768553744291,-1211.73,0.00040547,10]
[402159903,1768553744300,-654.54,0.00040547,10]
[402159904,1768553744309,-902.4,0.00040547,10]
[402159905,1768553744318,-548.97,0.00040547,10]
[402159906,1768553744328,-915.0,0.00040547,10]
[402159907,1768553744337,-786.94,0.00040547,10]
[402159908,1768553744346,-1003.52,0.00040547,10]
[402159909,1768553744355,-187.86453603,0.00040547,10]
[402159910,1768553744364,-837.95,0.00040547,10]
[402159911,1768553744373,-551.36,0.00040547,10]
[402159912,1768553744382,-548.17,0.00040547,10]
[402159913,1768553744391,-1196.74,0.00040547,10]
[402159914,1768553744400,-587.74,0.00040547,10]
[402159915,1768553744409,-1100.8,0.00040547,10]
[402159916,1768553744419,-1067.27,0.00040547,10]
[402159917,1768553744428,-403.6007103,0.00040547,10]
[402159918,1768553744437,-826.56,0.00040547,10]
[402159919,1768553744446,-875.73,0.00040547,10]
[402159920,1768553744455,-866.61,0.00040547,10]
[402159921,1768553744465,-542.86,0.00040547,10]
[402159922,1768553744476,-513.96,0.00040547,10]
[402159923,1768553744486,-853.02,0.00040547,10]
[402159924,1768553744496,-625.29,0.00040547,10]
[402159925,1768553744506,-568.61,0.00040547,10]
[402159926,1768553744515,-531.61300607,0.00040547,10]
[402159927,1768553744525,-503.47,0.00040547,10]
[402159928,1768553744534,-1479.39,0.00040547,10]
[402159929,1768553744543,-668.37,0.00040547,10]
[402159930,1768553744552,-554.51,0.00040547,10]
[402159931,1768553744561,-823.81,0.00040547,10]
[402159932,1768553744570,-522.66,0.00040547,10]
[402159933,1768553744582,-632.8,0.00040547,10]
[402159934,1768553744592,-760.77,0.00040547,10]
[402159935,1768553744601,-540.98,0.00040547,10]
[402159936,1768553744610,-500.0,0.00040547,10]
[402159937,1768553744621,-513.95,0.00040547,10]
[402159938,1768553744630,-543.44,0.00040547,10]
[402159939,1768553744639,-766.12,0.00040547,10]
[402159940,1768553744650,-745.1,0.00040547,10]
[402159941,1768553744659,-602.84,0.00040547,10]
[402159942,1768553744669,-681.64,0.00040547,10]
[402159943,1768553744678,-946.6,0.00040547,10]
[402159944,1768553744688,-982.01,0.00040547,10]
[402159945,1768553744697,-1431.59,0.00040547,10]
[402159946,1768553744706,-582.81,0.00040547,10]
[402159947,1768553744715,-1103.68,0.00040547,30]
[402159948,1768553744724,-500.0,0.00040547,10]
[402159949,1768553744734,-500.0,0.00040547,10]
[402159950,1768553744743,-872.15,0.00040547,10]
[402159951,1768553744752,-703.99,0.00040547,10]
[402159952,1768553744761,-548.64,0.00040547,10]
[402159953,1768553744770,-850.54,0.00040547,10]
[402159954,1768553744779,-1034.71,0.00040547,10]
[402159955,1768553744789,-500.0,0.00040547,10]
[402159956,1768553744798,-500.0,0.00040547,10]
[402159957,1768553744807,-712.34,0.00040547,10]
[402159958,1768553744816,-500.0,0.00040547,10]
[402159959,1768553744825,-1048.59,0.00040547,10]
[402159960,1768553744835,-797.78,0.00040547,10]
[402159961,1768553744843,-864.57,0.00040547,10]
[402159962,1768553744853,-500.0,0.00040547,10]
[402159963,1768553744862,-669.34,0.00040547,10]
[402159964,1768553744871,-500.0,0.00040547,10]
[402159965,1768553744880,-1695.98,0.00040547,10]
[402159966,1768553744889,-746.93,0.00040547,10]
[402159967,1768553744898,-710.63,0.00040547,10]
[402159968,1768553744907,-576.53,0.00040547,10]
[402159969,1768553744917,-551.55,0.00040547,10]
[402159970,1768553744926,-848.31,0.00040547,10]
[402159971,1768553744935,-500.0,0.00040547,10]
[402159972,1768553744944,-640.15,0.00040547,10]
[402159973,1768553744954,-829.07,0.00040547,10]
[402159974,1768553744963,-893.03,0.00040547,10]
[402159975,1768553744972,-1044.65,0.00040547,2]
[402159976,1768553744982,-580.09,0.00040547,10]
[402159977,1768553744991,-2280.83,0.00040547,10]
[402159978,1768553745000,-950.38,0.00040547,10]
[402159979,1768553745010,-925.85,0.00040547,10]